bitfinex-derivatives/quotes_BTCF0:USTF0_20241110
["timestamp","ask_amount","ask_price","bid_price","bid_amount"]
[1731212321793,0.3608,77385.0,77378.0,0.05164323]
[1731212322494,0.3608,77385.0,77379.0,0.05164323]
[1731212323600,0.01593604,77392.0,77379.0,0.05164323]
[1731212323601,0.00068,77393.0,77384.0,0.49598062]
[1731212323800,0.3608,77415.0,77392.0,0.49598062]
[1731212324004,0.13518062,77408.0,77399.0,0.3608]
[1731212326400,0.13518062,77408.0,77399.0,0.39940228]
[1731212327495,0.13518062,77408.0,77399.0,0.3608]
[1731212332903,0.01549339,77404.0,77399.0,0.3608]
[1731212333110,0.0317,77407.0,77399.0,0.3608]
[1731212334006,0.13518062,77401.0,77399.0,0.3608]
[1731212334216,0.13518062,77401.0,77399.0,0.45804]
[1731212335613,0.13518062,77401.0,77399.0,0.3608]
[1731212340302,0.13518062,77401.0,77393.0,0.3608]
[1731212340507,0.13518062,77401.0,77383.0,0.00193801]
[1731212340508,0.13518062,77395.0,77394.0,0.09724]
[1731212340705,0.13518062,77395.0,77388.0,0.3608]
[1731212340706,0.13518062,77395.0,77390.0,0.09724]
[1731212341109,0.13518062,77395.0,77388.0,0.3608]
[1731212341303,0.13518062,77389.0,77385.0,0.033]
[1731212341500,0.13518062,77389.0,77383.0,0.00193801]
[1731212341704,0.0313,77388.0,77383.0,0.00193801]
[1731212341910,0.0644,77388.0,77383.0,0.00193801]
[1731212345911,0.0644,77388.0,77376.0,0.3608]
[1731212346115,0.13518062,77377.0,77376.0,0.3608]
[1731212352717,0.13518062,77377.0,77370.0,0.03860228]
[1731212352922,0.13518062,77377.0,77367.0,0.40132228]
[1731212353112,0.13518062,77377.0,77367.0,0.3608]
[1731212354521,0.13518062,77377.0,77367.0,0.39940228]
[1731212354821,0.13518062,77377.0,77367.0,0.3608]
[1731212355224,0.13518062,77377.0,77366.0,0.09724]
[1731212355413,0.13518062,77377.0,77367.0,0.3608]
[1731212358016,0.13518062,77377.0,77366.0,0.09724]
[1731212359319,0.08683902,77372.0,77366.0,0.09724]
[1731212360219,0.08683902,77372.0,77364.0,0.39940228]
[1731212360524,0.08683902,77372.0,77364.0,0.49664228]
[1731212361121,0.08683902,77372.0,77366.0,0.03860228]
[1731212361628,0.08683902,77372.0,77367.0,0.03860228]
[1731212362030,0.08683902,77372.0,77364.0,0.45996]
[1731212362228,0.08683902,77372.0,77364.0,0.45804]
[1731212363228,0.08683902,77372.0,77365.0,0.09724]
[1731212363521,0.08683902,77372.0,77365.0,0.13584228]
[1731212364319,0.08683902,77372.0,77366.0,0.03860228]
[1731212365429,0.08683902,77372.0,77368.0,0.03860228]
[1731212366417,0.08683902,77372.0,77369.0,0.39940228]
[1731212367437,0.08683902,77372.0,77370.0,0.03860228]
[1731212368120,0.08683902,77372.0,77371.0,0.03860228]
[1731212368522,0.08683902,77372.0,77369.0,0.3608]
[1731212368723,0.08683902,77372.0,77370.0,0.03866887]
[1731212369122,0.08683902,77372.0,77369.0,0.3608]
[1731212369123,0.08683902,77372.0,77371.0,0.03866887]
[1731212369523,0.08683902,77372.0,77369.0,0.4123207]
[1731212370023,0.08683902,77372.0,77369.0,0.42535205]
[1731212371426,0.08683902,77372.0,77370.0,0.06455205]
[1731212372421,0.08683902,77372.0,77371.0,0.06455205]
[1731212373129,0.08683902,77372.0,77370.0,0.06455205]
[1731212373329,0.08683902,77372.0,77371.0,0.15308794]
[1731212374430,0.08683902,77372.0,77369.0,0.3608]
[1731212374630,0.08683902,77372.0,77370.0,0.08855383]
[1731212374829,0.08683902,77372.0,77371.0,0.08855383]
[1731212377033,0.08683902,77372.0,77369.0,0.3608]
[1731212377240,0.08683902,77372.0,77371.0,0.0387377]
[1731212377439,0.0311,77378.0,77371.0,0.0387377]
[1731212377635,0.08683902,77374.0,77372.0,0.0387377]
[1731212377827,0.08683902,77374.0,77373.0,0.0387377]
[1731212378238,0.08683902,77374.0,77372.0,0.0387377]
[1731212378528,0.08683902,77373.0,77371.0,0.0387377]
[1731212378732,0.31265719,77373.0,77371.0,0.0387377]
[1731212378932,0.31265719,77373.0,77370.0,0.0387377]
[1731212379132,0.11753902,77373.0,77370.0,0.0387377]
[1731212379745,0.11753902,77373.0,77369.0,0.3995377]
[1731212380238,0.11753902,77373.0,77370.0,0.0387377]
[1731212380427,0.11753902,77373.0,77369.0,0.3995377]
[1731212380633,0.11753902,77373.0,77368.0,0.0387377]
[1731212380937,0.08683902,77369.0,77368.0,0.0387377]
[1731212382432,0.08683902,77369.0,77365.0,0.05165027]
[1731212382740,0.08683902,77369.0,77368.0,0.03875317]
[1731212382945,0.08683902,77369.0,77368.0,0.03875315]
[1731212383443,0.10295105,77369.0,77368.0,0.03875315]
[1731212383636,0.10295105,77369.0,77365.0,0.05165027]
[1731212384338,0.12871285,77402.0,77367.0,0.3608]
[1731212384540,0.02688436,77381.0,77372.0,0.08683902]
[1731212384742,0.19396727,77381.0,77375.0,0.03874862]
[1731212384939,0.19396727,77381.0,77376.0,0.03874862]
[1731212385138,0.3608,77382.0,77379.0,0.06456283]
[1731212385339,0.3608,77382.0,77374.0,0.07728509]
[1731212385340,0.3608,77382.0,77378.0,0.06456283]
[1731212385540,0.37647742,77382.0,77380.0,0.06456283]
[1731212386839,0.01567742,77382.0,77381.0,0.06456283]
[1731212387041,0.08683902,77385.0,77381.0,0.08817901]
[1731212387246,0.08683902,77385.0,77382.0,0.15271141]
[1731212387442,0.08683902,77385.0,77382.0,0.0645324]
[1731212388149,0.08683902,77385.0,77381.0,0.0645324]
[1731212388848,0.1274,77398.0,77381.0,0.0645324]
[1731212389044,0.37670408,77391.0,77387.0,0.0516048]
[1731212389242,0.08683902,77388.0,77382.0,0.0645324]
[1731212389438,0.08683902,77388.0,77382.0,0.3608]
[1731212389645,0.08683902,77388.0,77382.0,0.4253324]
[1731212390343,0.08683902,77388.0,77387.0,0.05157897]
[1731212390955,0.3608,77391.0,77387.0,0.08683902]
[1731212391249,0.3608,77391.0,77387.0,0.15137142]
[1731212391952,0.3608,77391.0,77387.0,0.0645324]
[1731212392145,0.3608,77391.0,77383.0,0.16412411]
[1731212392146,0.3608,77391.0,77384.0,0.03866394]
[1731212392343,0.01753408,77394.0,77383.0,0.12550296]
[1731212392751,0.01753408,77394.0,77384.0,0.03866394]
[1731212393458,0.01753408,77394.0,77383.0,0.12550296]
[1731212394344,0.01753408,77394.0,77383.0,0.08683902]
[1731212395047,0.01753408,77394.0,77383.0,0.12550296]
[1731212395439,0.01753408,77394.0,77383.0,0.08683902]
[1731212400053,0.08683902,77390.0,77382.0,0.3608]
[1731212400249,0.08683902,77390.0,77388.0,0.03866394]
[1731212401256,0.08683902,77390.0,77387.0,0.03866394]
[1731212403161,0.01753408,77394.0,77387.0,0.03866394]
[1731212403857,0.01753408,77394.0,77386.0,0.12550296]
[1731212404062,0.01753408,77394.0,77388.0,0.03866394]
[1731212405658,0.00193929,77394.0,77391.0,0.08683902]
[1731212405854,0.00193929,77394.0,77391.0,0.12550296]
[1731212406160,0.00193929,77394.0,77392.0,0.0302]
[1731212407251,0.00193929,77394.0,77392.0,0.06886394]
[1731212407451,0.00193929,77394.0,77392.0,0.12736]
[1731212408461,0.00193929,77394.0,77392.0,0.16602394]
[1731212409051,0.00193929,77394.0,77393.0,0.03866394]
[1731212409857,0.00193929,77394.0,77392.0,0.12736]
[1731212411164,0.00193929,77394.0,77392.0,0.17891192]
[1731212411368,0.00193929,77394.0,77393.0,0.05155192]
[1731212411664,0.00193929,77394.0,77392.0,0.05155192]
[1731212411861,0.00193929,77394.0,77390.0,0.05155192]
[1731212412064,0.00193929,77394.0,77390.0,0.09716]
[1731212412271,0.00193929,77394.0,77393.0,0.03861064]
[1731212412570,0.00193929,77394.0,77390.0,0.09716]
[1731212413462,0.00193929,77394.0,77390.0,0.14871192]
[1731212414364,0.00193929,77394.0,77391.0,0.05155192]
[1731212414559,0.00193929,77394.0,77392.0,0.05155192]
[1731212415261,0.00193929,77394.0,77390.0,0.09716]
[1731212415469,0.00193929,77394.0,77390.0,0.13580896]
[1731212416170,0.00193929,77394.0,77393.0,0.3608]
[1731212417576,0.00193929,77394.0,77393.0,0.46036153]
[1731212418464,0.00193929,77394.0,77393.0,0.4217]
[1731212419566,0.00193929,77394.0,77393.0,0.46036865]
[1731212421792,0.20272006,77400.0,77393.0,0.46036865]
[1731212421958,0.20272006,77400.0,77393.0,0.4217]
[1731212422162,0.20272006,77400.0,77399.0,0.03866865]
[1731212422358,0.20272006,77400.0,77398.0,0.03866865]
[1731212423364,0.11588104,77400.0,77398.0,0.03866865]
[1731212423573,0.11588104,77400.0,77396.0,0.05155192]
[1731212423776,0.11588104,77400.0,77397.0,0.05155192]
[1731212424069,0.11588104,77400.0,77398.0,0.05155192]
[1731212424658,0.11588104,77400.0,77399.0,0.05155192]
[1731212425472,0.11588104,77400.0,77396.0,0.3608]
[1731212425473,0.11588104,77400.0,77398.0,0.05155192]
[1731212425673,0.11588104,77400.0,77399.0,0.05155192]
[1731212426073,0.11588104,77400.0,77398.0,0.05155192]
[1731212427677,0.1,77400.0,77398.0,0.05155192]
[1731212430269,0.1,77400.0,77396.0,0.44947902]
[1731212430568,0.1,77400.0,77396.0,0.44763902]
[1731212432376,0.1,77400.0,77396.0,0.08683902]
[1731212432679,0.1,77400.0,77396.0,0.3608]
[1731212433174,0.1,77400.0,77395.0,0.3608]
[1731212433370,0.18683902,77400.0,77395.0,0.3608]
[1731212433565,0.18683902,77400.0,77395.0,0.45792]
[1731212435678,0.18683902,77400.0,77395.0,0.45788]
[1731212437273,0.18683902,77400.0,77397.0,0.05155192]
[1731212437481,0.18683902,77400.0,77398.0,0.05155192]
[1731212438672,0.18683902,77400.0,77397.0,0.05155192]
[1731212439080,0.1,77400.0,77397.0,0.05155192]
[1731212439269,0.1,77400.0,77398.0,0.05155192]
[1731212441671,0.1,77400.0,77397.0,0.05155192]
[1731212442380,0.18683902,77400.0,77397.0,0.05155192]
[1731212443481,0.18683902,77400.0,77398.0,0.05155192]
[1731212443872,0.1,77400.0,77398.0,0.05155192]
[1731212444882,0.1,77400.0,77395.0,0.3608]
[1731212444883,0.1,77400.0,77399.0,0.05155192]
[1731212445181,0.1,77400.0,77398.0,0.05155192]
[1731212445478,0.1,77400.0,77399.0,0.05155192]
[1731212446877,0.1,77400.0,77395.0,0.3608]
[1731212447079,0.1,77400.0,77399.0,0.05156807]
[1731212447477,0.1,77400.0,77395.0,0.3608]
[1731212447683,0.1,77400.0,77399.0,0.05157215]
[1731212448275,0.1,77400.0,77398.0,0.05157215]
[1731212449785,0.18683902,77400.0,77398.0,0.05157215]
[1731212449983,0.19472237,77399.0,77398.0,0.05157215]
[1731212450178,0.19472237,77399.0,77398.0,0.00167215]
[1731212450483,0.58232237,77399.0,77398.0,0.00167215]
[1731212450694,0.58232237,77399.0,77388.0,0.07728509]
[1731212450695,0.3876,77398.0,77388.0,0.07728509]
[1731212450889,0.53447804,77389.0,77388.0,0.07728509]
[1731212451188,0.72730372,77389.0,77371.0,0.09708]
[1731212451388,0.08683902,77379.0,77371.0,0.09708]
[1731212452382,0.19401941,77378.0,77368.0,0.11592184]
[1731212453490,0.08683902,77369.0,77368.0,0.11592184]
[1731212455194,0.11863902,77370.0,77368.0,0.11592184]
[1731212455490,0.19369393,77369.0,77368.0,0.11592184]
[1731212456084,0.19369393,77369.0,77363.0,0.3608]
[1731212456287,0.08683902,77364.0,77363.0,0.3608]
[1731212457289,0.3608,77371.0,77363.0,0.3608]
[1731212457490,0.0303,77384.0,77370.0,0.08683902]
[1731212457795,0.08683902,77385.0,77376.0,0.08683902]
[1731212457993,0.08683902,77379.0,77371.0,0.27985902]
[1731212459306,0.37688197,77380.0,77371.0,0.19302]
[1731212460400,0.02585158,77386.0,77378.0,0.13523898]
[1731212460692,0.3608,77396.0,77378.0,0.13523898]
[1731212461089,0.3608,77396.0,77384.0,0.03860775]
[1731212461400,0.01786415,77395.0,77385.0,0.09712]
[1731212461598,0.00193919,77395.0,77386.0,0.03860775]
[1731212461897,0.00193919,77395.0,77385.0,0.09712]
[1731212462301,0.13523898,77389.0,77385.0,0.09712]
[1731212466894,0.3608,77393.0,77385.0,0.09712]
[1731212469901,0.3608,77393.0,77386.0,0.0305]
[1731212470394,0.3608,77393.0,77387.0,0.0644]
[1731212470796,0.3608,77393.0,77388.0,0.09704]
[1731212476404,0.3608,77393.0,77388.0,0.13564775]
[1731212476705,0.00193919,77395.0,77388.0,0.13564775]
[1731212476911,0.00193919,77395.0,77390.0,0.3608]
[1731212477398,0.00193919,77395.0,77390.0,0.39940775]
[1731212478013,0.00193919,77395.0,77390.0,0.3608]
[1731212480002,0.00193919,77395.0,77388.0,0.49644775]
[1731212480706,0.00193919,77395.0,77389.0,0.03860775]
[1731212481311,0.00193919,77395.0,77388.0,0.45976]
[1731212481312,0.08679591,77392.0,77388.0,0.49836775]
[1731212481501,0.08679591,77392.0,77388.0,0.49644775]
[1731212482202,0.08679591,77392.0,77391.0,0.03860775]
[1731212482503,0.08679591,77392.0,77388.0,0.4598]
[1731212482701,0.08679591,77392.0,77388.0,0.45784]
[1731212483601,0.08679591,77392.0,77386.0,0.09704]
[1731212483809,0.08679591,77387.0,77386.0,0.09704]
[1731212484499,0.08679591,77387.0,77385.0,0.09704]
[1731212485603,0.08679591,77387.0,77381.0,0.3608]
[1731212485804,0.08679591,77387.0,77382.0,0.09704]
[1731212488510,0.08679591,77387.0,77382.0,0.13564775]
[1731212488710,0.10260615,77387.0,77382.0,0.13564775]
[1731212488913,0.10260615,77387.0,77382.0,0.09704]
[1731212489112,0.10260615,77387.0,77382.0,0.13564775]
[1731212489504,0.10260615,77387.0,77383.0,0.03860775]
[1731212490717,0.10260615,77387.0,77384.0,0.15100088]
[1731212490909,0.10260615,77387.0,77384.0,0.06438475]
[1731212493209,0.00193919,77395.0,77383.0,0.06438475]
[1731212493210,0.08679591,77391.0,77383.0,0.06438475]
[1731212493611,0.08679591,77391.0,77384.0,0.06438475]
[1731212496001,0.08679591,77391.0,77383.0,0.06438475]
[1731212498617,0.08679591,77391.0,77384.0,0.06438475]
[1731212499713,0.08679591,77391.0,77382.0,0.09704]
[1731212499714,0.08679591,77391.0,77385.0,0.15214942]
[1731212499908,0.08679591,77391.0,77385.0,0.06438475]
[1731212500113,0.08679591,77391.0,77386.0,0.06438475]
[1731212500819,0.08679591,77391.0,77387.0,0.15215081]
[1731212501119,0.08679591,77391.0,77387.0,0.06438475]
[1731212502718,0.08679591,77391.0,77386.0,0.06438475]
[1731212503221,0.08679591,77391.0,77387.0,0.06438475]
[1731212504216,0.08679591,77391.0,77386.0,0.06438475]
[1731212504407,0.17359182,77387.0,77384.0,0.06438475]
[1731212504613,0.44759591,77385.0,77379.0,0.06438475]
[1731212504815,0.08679591,77380.0,77377.0,0.06438475]
[1731212505118,0.08679591,77378.0,77374.0,0.16138475]
[1731212505620,0.08679591,77378.0,77374.0,0.097]
[1731212507914,0.10242688,77378.0,77374.0,0.097]
[1731212511114,0.10242688,77378.0,77372.0,0.3608]
[1731212512722,0.46322688,77378.0,77373.0,0.15243126]
[1731212512916,0.08679591,77374.0,77373.0,0.06438475]
[1731212513415,0.08679591,77374.0,77372.0,0.3608]
[1731212517829,0.10242688,77378.0,77372.0,0.3608]
[1731212518124,0.08679591,77384.0,77373.0,0.08679591]
[1731212520434,0.08679591,77380.0,77373.0,0.08679591]
[1731212521026,0.08679591,77380.0,77372.0,0.3608]
[1731212522228,0.08679591,77376.0,77372.0,0.3608]
[1731212522421,0.08679591,77376.0,77373.0,0.097]
[1731212522826,0.08679591,77380.0,77374.0,0.03867801]
[1731212523029,0.08679591,77380.0,77375.0,0.10257801]
[1731212523627,0.08679591,77380.0,77376.0,0.03867801]
[1731212523827,0.08679591,77380.0,77375.0,0.10257801]
[1731212524037,0.08679591,77380.0,77376.0,0.03867801]
[1731212524426,0.08679591,77380.0,77375.0,0.10257801]
[1731212525722,0.08679591,77380.0,77376.0,0.03867801]
[1731212527930,0.3608,77390.0,77379.0,0.3608]
[1731212528132,0.08679591,77389.0,77384.0,0.05157068]
[1731212528531,0.08679591,77389.0,77385.0,0.05157068]
[1731212528837,0.08679591,77397.0,77387.0,0.3608]
[1731212529133,0.08679591,77397.0,77393.0,0.03867002]
[1731212530443,0.08679591,77397.0,77388.0,0.0661]
[1731212530444,0.08679591,77397.0,77392.0,0.03867002]
[1731212530741,0.08679591,77393.0,77391.0,0.03867002]
[1731212531132,0.08679591,77393.0,77392.0,0.03867002]
[1731212531439,0.08679591,77393.0,77391.0,0.03867002]
[1731212534328,0.08679591,77393.0,77388.0,0.4269]
[1731212534329,0.08679591,77393.0,77390.0,0.03867002]
[1731212534531,0.08679591,77393.0,77391.0,0.03867002]
[1731212534729,0.00193919,77395.0,77391.0,0.09696]
[1731212534935,0.00193919,77395.0,77391.0,0.14853068]
[1731212535132,0.00193919,77395.0,77392.0,0.05157068]
[1731212535340,0.00193919,77395.0,77391.0,0.09696]
[1731212535937,0.0887351,77395.0,77391.0,0.09696]
[1731212537445,0.4608,77400.0,77392.0,0.08679591]
[1731212537656,0.1,77400.0,77399.0,0.3608]
[1731212542349,0.1,77400.0,77394.0,0.01616282]
[1731212542547,0.1,77400.0,77398.0,0.3608]
[1731212543642,0.1,77400.0,77395.0,0.05157068]
[1731212543842,0.1,77400.0,77398.0,0.3608]
[1731212545547,0.1,77400.0,77395.0,0.05157068]
[1731212545849,0.1,77400.0,77398.0,0.39940622]
[1731212546646,0.1,77400.0,77398.0,0.03860622]
[1731212546948,0.1,77400.0,77398.0,0.39940622]
[1731212548350,0.1,77400.0,77398.0,0.03860622]
[1731212548649,0.1,77400.0,77398.0,0.39940622]
[1731212549849,0.1,77400.0,77398.0,0.3608]
[1731212551256,0.1,77400.0,77399.0,0.09696]
[1731212552445,0.1,77400.0,77398.0,0.09696]
[1731212552642,0.08679591,77399.0,77398.0,0.09696]
[1731212553254,0.08679591,77399.0,77397.0,0.03860622]
[1731212553453,0.0319,77398.0,77391.0,0.03860622]
[1731212553653,0.0319,77398.0,77388.0,0.03860622]
[1731212553654,0.08679591,77392.0,77388.0,0.03860622]
[1731212553855,0.08679591,77392.0,77386.0,0.09696]
[1731212554156,0.08679591,77387.0,77386.0,0.09696]
[1731212554856,0.08679591,77387.0,77383.0,0.00193811]
[1731212554857,0.28030501,77387.0,77383.0,0.00193811]
[1731212555047,0.08679591,77385.0,77383.0,0.00193811]
[1731212555443,0.0625,77386.0,77383.0,0.00193811]
[1731212556253,0.08679591,77385.0,77383.0,0.00193811]
[1731212556455,0.0625,77386.0,77383.0,0.00193811]
[1731212556752,0.08679591,77385.0,77383.0,0.00193811]
[1731212557558,0.3608,77384.0,77383.0,0.00193811]
[1731212574264,0.08679591,77385.0,77383.0,0.00193811]
[1731212578564,0.19507013,77384.0,77369.0,0.03860622]
[1731212578768,0.19507013,77384.0,77367.0,0.03860622]
[1731212578769,0.17359182,77370.0,77367.0,0.03860622]
[1731212578969,0.08679591,77370.0,77367.0,0.03860622]
[1731212579167,0.08679591,77370.0,77366.0,0.03860622]
[1731212579370,0.08679591,77367.0,77365.0,0.19892622]
[1731212579573,0.08679591,77367.0,77365.0,0.16032]
[1731212579770,0.08679591,77367.0,77365.0,0.03866192]
[1731212579974,0.08679591,77367.0,77361.0,0.05157068]
[1731212579975,0.08679591,77367.0,77361.0,0.13558192]
[1731212580276,0.08679591,77362.0,77361.0,0.03866192]
[1731212580478,0.08679591,77362.0,77361.0,0.06446335]
[1731212580871,0.08679591,77362.0,77360.0,0.06446335]
[1731212581071,0.08679591,77362.0,77359.0,0.06446335]
[1731212581270,0.08679591,77362.0,77358.0,0.09606335]
[1731212581471,0.08679591,77362.0,77358.0,0.0316]
[1731212581975,0.08679591,77362.0,77358.0,0.09606335]
[1731212582371,0.08679591,77362.0,77358.0,0.0316]
[1731212583077,0.08679591,77362.0,77361.0,0.05158273]
[1731212583273,0.08679591,77362.0,77360.0,0.05156658]
[1731212583469,0.08679591,77362.0,77361.0,0.05156658]
[1731212583974,0.08679591,77362.0,77360.0,0.05156658]
[1731212585378,0.08679591,77362.0,77359.0,0.05156658]
[1731212585877,0.08679591,77362.0,77358.0,0.08316658]
[1731212586266,0.08679591,77362.0,77361.0,0.03865973]
[1731212586473,0.19462529,77361.0,77359.0,0.03866169]
[1731212586773,0.29699316,77362.0,77357.0,0.03866169]
[1731212586976,0.08679591,77358.0,77357.0,0.03866169]
[1731212587481,0.08679591,77358.0,77356.0,0.03866169]
[1731212587683,0.08679591,77357.0,77356.0,0.03866169]
[1731212587870,0.08679591,77357.0,77355.0,0.03866169]
[1731212588173,0.08679591,77357.0,77354.0,0.03866169]
[1731212588174,0.17359182,77357.0,77354.0,0.03866169]
[1731212588379,0.08679591,77355.0,77353.0,0.03866169]
[1731212588579,0.08679591,77355.0,77352.0,0.03866169]
[1731212588788,0.08679591,77353.0,77352.0,0.03866169]
[1731212589480,0.08679591,77353.0,77351.0,0.03866169]
[1731212589681,0.08679591,77352.0,77351.0,0.03866169]
[1731212590385,0.08679591,77352.0,77350.0,0.03866169]
[1731212590588,0.08679591,77351.0,77350.0,0.03866169]
[1731212591285,0.08679591,77351.0,77349.0,0.03866169]
[1731212591583,0.08679591,77351.0,77348.0,0.03866169]
[1731212591785,0.08679591,77351.0,77347.0,0.03866169]
[1731212591983,0.08679591,77348.0,77347.0,0.03866169]
[1731212592388,0.08679591,77348.0,77346.0,0.03866169]
[1731212592582,0.08679591,77347.0,77345.0,0.03866169]
[1731212592887,0.08679591,77346.0,77345.0,0.03866169]
[1731212593276,0.28017177,77346.0,77344.0,0.03866169]
[1731212593689,0.3608,77345.0,77342.0,0.04060068]
[1731212593887,0.3608,77345.0,77342.0,0.00193899]
[1731212594189,0.19337586,77344.0,77342.0,0.00193899]
[1731212599993,0.08679591,77343.0,77342.0,0.00193899]
[1731212600386,0.01593104,77344.0,77334.0,0.0649]
[1731212600587,0.08679591,77337.0,77334.0,0.0649]
[1731212603497,0.08679591,77337.0,77335.0,0.03866169]
[1731212603992,0.01621986,77345.0,77335.0,0.4862576]
[1731212604298,0.08679591,77345.0,77340.0,0.03866169]
[1731212604603,0.08679591,77341.0,77337.0,0.05156658]
[1731212604994,0.08679591,77341.0,77340.0,0.038568]
[1731212604995,0.04153377,77341.0,77340.0,0.038568]
[1731212605498,0.04153377,77341.0,77340.0,0.03858152]
[1731212605901,0.37704684,77349.0,77340.0,0.03858152]
[1731212606098,0.08679591,77341.0,77338.0,0.05156658]
[1731212606496,0.08679591,77341.0,77339.0,0.05156658]
[1731212606895,0.08679591,77341.0,77338.0,0.05156658]
[1731212607307,0.08679591,77341.0,77339.0,0.05156658]
[1731212607505,0.3608,77349.0,77340.0,0.05156658]
[1731212607698,0.3608,77349.0,77343.0,0.0386146]
[1731212608007,0.08679591,77344.0,77343.0,0.0386146]
[1731212608202,0.08679591,77344.0,77341.0,0.05156658]
[1731212608601,0.08679591,77344.0,77343.0,0.05156658]
[1731212608803,0.08679591,77344.0,77342.0,0.05156658]
[1731212609108,0.08679591,77343.0,77341.0,0.09692]
[1731212609304,0.08679591,77342.0,77341.0,0.09692]
[1731212613513,0.37688021,77349.0,77341.0,0.09692]
[1731212613717,0.08679591,77342.0,77341.0,0.09692]
[1731212614312,0.08679591,77342.0,77341.0,0.13557363]
[1731212614701,0.08679591,77342.0,77341.0,0.09692]
[1731212617329,0.08679591,77342.0,77341.0,0.14845817]
[1731212617530,0.3608,77357.0,77341.0,0.14845817]
[1731212617721,0.01566889,77357.0,77351.0,0.03872302]
[1731212617928,0.08679591,77352.0,77348.0,0.1461307]
[1731212618119,0.08679591,77352.0,77349.0,0.1485107]
[1731212618527,0.08679591,77352.0,77350.0,0.1519782]
[1731212618726,0.08679591,77352.0,77350.0,0.06446335]
[1731212621432,0.0811721,77365.0,77350.0,0.06446335]
[1731212621636,0.0811721,77365.0,77359.0,0.03871431]
[1731212621832,0.19284382,77364.0,77359.0,0.03871431]
[1731212623234,0.0483721,77365.0,77360.0,0.03870347]
[1731212623425,0.0483721,77365.0,77352.0,0.3608]
[1731212623426,0.08679591,77361.0,77358.0,0.14849908]
[1731212623630,0.08679591,77359.0,77358.0,0.14849908]
[1731212623826,0.08679591,77359.0,77358.0,0.09688]
[1731212624531,0.08679591,77359.0,77356.0,0.06446335]
[1731212624727,0.08679591,77359.0,77357.0,0.09688]
[1731212629532,0.08679591,77359.0,77352.0,0.39948185]
[1731212629533,0.08679591,77359.0,77358.0,0.09688]
[1731212638143,0.08679591,77359.0,77357.0,0.09688]
[1731212642552,0.08679591,77359.0,77357.0,0.1484558]
[1731212642950,0.08679591,77359.0,77356.0,0.0515758]
[1731212643150,0.0301,77364.0,77356.0,0.09688]
[1731212643151,0.17359182,77357.0,77356.0,0.09688]
[1731212645359,0.17359182,77357.0,77356.0,0.14848411]
[1731212646256,0.17359182,77357.0,77352.0,0.06446335]
[1731212646460,0.0301,77364.0,77354.0,0.09688]
[1731212646657,0.0301,77364.0,77360.0,0.03873575]
[1731212646959,0.19388582,77363.0,77360.0,0.03873575]
[1731212647353,0.19388582,77363.0,77361.0,0.03873575]
[1731212647553,0.08679591,77362.0,77361.0,0.03873575]
[1731212647749,0.08679591,77362.0,77354.0,0.09688]
[1731212647956,0.08679591,77355.0,77354.0,0.09688]
[1731212649767,0.0301,77364.0,77354.0,0.13561575]
[1731212649950,0.08679591,77355.0,77354.0,0.13561575]
[1731212650856,0.08679591,77355.0,77354.0,0.09688]
[1731212651863,0.08679591,77355.0,77354.0,0.1356341]
[1731212652062,0.08679591,77355.0,77354.0,0.09688]
[1731212652655,0.08679591,77355.0,77354.0,0.1356341]
[1731212652852,0.08679591,77355.0,77354.0,0.09688]
[1731212654862,0.10268106,77355.0,77354.0,0.09688]
[1731212655058,0.10268106,77355.0,77354.0,0.13563751]
[1731212655565,0.10268106,77355.0,77354.0,0.09688]
[1731212656762,0.10268106,77355.0,77354.0,0.16134335]
[1731212657570,0.10268106,77355.0,77354.0,0.24843212]
[1731212657871,0.10268106,77355.0,77354.0,0.16134335]
[1731212658366,0.10268106,77355.0,77354.0,0.24847771]
[1731212658566,0.10268106,77355.0,77354.0,0.24844699]
[1731212659262,0.10268106,77355.0,77354.0,0.18398364]
[1731212659467,0.10268106,77355.0,77354.0,0.24859334]
[1731212659670,0.10268106,77355.0,77354.0,0.1614897]
[1731212661173,0.10268106,77355.0,77354.0,0.09688]
[1731212661578,0.10268106,77355.0,77354.0,0.1614897]
[1731212661876,0.10268106,77355.0,77354.0,0.24875131]
[1731212662077,0.01588515,77355.0,77354.0,0.24875131]
[1731212662269,0.08679591,77355.0,77354.0,0.2487398]
[1731212662869,0.08679591,77355.0,77354.0,0.09688]
[1731212668675,0.10264514,77355.0,77354.0,0.09688]
[1731212670876,0.10264514,77355.0,77354.0,0.18417189]
[1731212677891,0.10264514,77355.0,77354.0,0.08729189]
[1731212681399,0.10264514,77355.0,77354.0,0.18405189]
[1731212681994,0.3843314,77355.0,77353.0,0.06464103]
[1731212682182,0.3843314,77355.0,77346.0,0.07735603]
[1731212682183,0.0319,77354.0,77350.0,0.06464103]
[1731212682386,0.08679591,77351.0,77349.0,0.06464103]
[1731212682589,0.08679591,77350.0,77349.0,0.06464103]
[1731212682791,0.08679591,77350.0,77349.0,0.15194879]
[1731212683294,0.08679591,77350.0,77348.0,0.06464103]
[1731212683992,0.08679591,77350.0,77348.0,0.42544103]
[1731212685687,0.0302,77353.0,77348.0,0.42544103]
[1731212685888,0.08679591,77352.0,77348.0,0.39956063]
[1731212687997,0.08679591,77352.0,77348.0,0.3608]
[1731212688205,0.08679591,77352.0,77351.0,0.03876063]
[1731212689502,0.0302,77353.0,77351.0,0.03876063]
[1731212690204,0.0302,77353.0,77350.0,0.03876063]
[1731212690507,0.0302,77353.0,77349.0,0.03876063]
[1731212690705,0.08679591,77350.0,77348.0,0.03876063]
[1731212692400,0.08679591,77350.0,77345.0,0.13552063]
[1731212692706,0.08679591,77350.0,77348.0,0.03876063]
[1731212692904,0.08679591,77350.0,77345.0,0.09676]
[1731212693101,0.08679591,77350.0,77349.0,0.05165565]
[1731212694314,0.08679591,77350.0,77345.0,0.09676]
[1731212694808,0.08679591,77350.0,77349.0,0.05165183]
[1731212695206,0.0302,77353.0,77349.0,0.05165183]
[1731212695402,0.08679591,77350.0,77349.0,0.05165183]
[1731212695808,0.08679591,77350.0,77345.0,0.09676]
[1731212696511,0.08679591,77346.0,77345.0,0.09676]
[1731212700710,0.10268516,77346.0,77345.0,0.09676]
[1731212704807,0.01588925,77346.0,77345.0,0.09676]
[1731212705004,0.08679591,77347.0,77345.0,0.09676]
[1731212707916,0.08679591,77347.0,77345.0,0.16140103]
[1731212708111,0.08679591,77347.0,77346.0,0.06464103]
[1731212708308,0.08679591,77347.0,77346.0,0.15300591]
[1731212708710,0.08679591,77347.0,77346.0,0.15295065]
[1731212709109,0.08679591,77347.0,77346.0,0.08836488]
[1731212714426,0.08679591,77347.0,77346.0,0.08836874]
[1731212715924,0.36875289,77347.0,77346.0,0.03878114]
[1731212716124,0.28195698,77347.0,77344.0,0.03878114]
[1731212716325,0.08679591,77345.0,77343.0,0.03878114]
[1731212716630,0.28121775,77344.0,77342.0,0.03878114]